Cogmind - Beta 13 @@@ ROGUE MODE // 2024.04.12 @ 17:23:35 Player: monkeman Result: Destroyed by 4N-T2V(R) with Subdweller Shrapnel Launcher Performance ------------- Evolutions (0) 0 Regions Visited (2) 400 Robots Destroyed (29) 145 Value Destroyed (578) 578 Prototype IDs (3) 60 Alien Tech Used (0) 0 Bonus (0) 0 TOTAL SCORE: 1183 Bonus ------- None Cogmind --------- Core Integrity 0/250 Matter 290/300 Energy 91/100 System Corruption 0% Temperature Cool (0) Movement Treading (160) Location -10/Subcaves Parts ------- > --- POWER (1) -------- (None) > --- PROPULSION (2) --- Light Treads Light Treads > --- UTILITY (2) ------ Large Storage Unit Improved Targeting Computer > --- WEAPON (2) ------- (None) > --- INVENTORY (15) --- Subdweller Monowheel Disposable Heat Sink Scrap Shield Makeshift System Shield Heavy EM Pulse Gun Heavy EM Pulse Gun Subdweller Beam Cannon Heavy Assault Rifle Heavy Assault Rifle Subdweller Machine Gun Battle Cannon Grenade Launcher Maul Peak State ------------ > --- POWER ------------ Subdweller Power Source > --- PROPULSION ------- Light Treads Light Treads > --- UTILITY ---------- Large Storage Unit Improved Targeting Computer > --- WEAPON ----------- Particle Gun Barrage Gun > --- INVENTORY -------- Light Treads Spiked Treads Subdweller Monowheel Scrap Shield Makeshift System Shield Heavy EM Pulse Gun Heavy EM Pulse Gun Subdweller Beam Cannon Heavy Assault Rifle Heavy Assault Rifle Heavy Assault Rifle Subdweller Machine Gun Grenade Launcher Maul [Rating: 15] Favorites ----------- Power Light Ion Engine Engine Light Ion Engine Propulsion Aluminum Leg Treads Light Treads Leg Aluminum Leg Utility Large Storage Unit Storage Large Storage Unit Processor Improved Targeting Computer Protection Light Armor Plating Weapon Heavy Assault Rifle Energy Gun Particle Gun Ballistic Gun Heavy Assault Rifle Launcher Grenade Launcher Impact Weapon Maul Build | -11 -10 -10 ------- Run | Yrd Mat Sub Slots Evolved . | . . . Power . | . . . Propulsion . | . . . Utility . | . . . Weapon . | . . . Parts Attached 30 | 8 9 13 Power 3 | 1 1 1 Engine 3 | 1 1 1 Core . | . . . Reactor . | . . . Propulsion 9 | 4 3 2 Treads 6 | 2 2 2 Leg 3 | 2 1 . Wheel . | . . . Hover . | . . . Flight . | . . . Utility 5 | 1 3 1 Device . | . . . Storage 2 | 1 1 . Processor 2 | . 1 1 Hackware . | . . . Protection 1 | . 1 . Artifact . | . . . Weapon 13 | 2 2 9 Energy Gun 1 | . . 1 Energy Cannon . | . . . Ballistic Gun 8 | 2 2 4 Ballistic Cannon . | . . . Launcher 2 | . . 2 Special Weapon . | . . . Impact Weapon 2 | . . 2 Slashing Weapon . | . . . Piercing Weapon . | . . . Special Melee Weapon . | . . . Unidentified Prototypes . | . . . Parts Lost 7 | . 1 6 Power 2 | . 1 1 Propulsion 2 | . . 2 Utility 1 | . . 1 Weapon 2 | . . 2 Highest Loss Streak 3 | . 1 3 To Critical Strikes . | . . . Average Slot Usage (%) 95 | . 97 92 Engine 11 | . 13 9 Treads 11 | . . 27 Leg 16 | . 27 . Storage 14 | . 14 14 Processor 6 | . 5 8 Protection 5 | . 6 3 Energy Gun 4 | . . 10 Ballistic Gun 22 | . 28 14 Launcher 1 | . . 2 Naked Turns . | . . . Heaviest Build 32 | 12 32 32 Greatest Support 40 | 40 40 40 Greatest Overweight (x) 3 | 3 1 1 Average Overweight (x) . | . . . Largest Inventory Capacity 15 | 8 15 15 Average Capacity 13 | 7 13 15 Most Carried 15 | 6 15 15 Average Carried 13 | 3 12 14 Final Capacity 15 | 8 15 15 Final Carried 14 | 5 13 14 Class Distribution -------------------- 100% | Mutant Dominant Class ---------------- Mutant | -10/Materials Mutant | -10/Subcaves Resources | -11 -10 -10 ----------- Run | Yrd Mat Sub Matter Collected 849 | 231 327 291 Remotely . | . . . Salvage Created 839 | . 528 311 Parts 65 | . 44 21 Haulers Intercepted 1 | . 1 . Recyclers Shooed . | . . . Parts Field Recycled . | . . . Retrieved Matter . | . . . Parts Self-Destructed 14 | . . 14 Prevented . | . . . Kills | -11 -10 -10 ------- Run | Yrd Mat Sub Combat Hostiles Destroyed 22 | . 13 9 Guns 18 | . 13 5 AOE 4 | . . 4 Classes Destroyed 7 | . 6 1 Builder 1 | . 1 . Hauler 1 | . 1 . Operator 2 | . 2 . Watcher 3 | . 3 . Swarmer 12 | . 6 6 Grunt 7 | . 7 . Subdweller 3 | . . 3 Best Kill Streak 4 | . 4 3 Combat Bots Only 3 | . 3 3 Max Kills in Single Turn 2 | . 2 2 Gunslinging 1 | . 1 . Exploded 2 | . . 2 Melee . | . . . Uniques/NPCs Destroyed . | . . . Combat | -11 -10 -10 -------- Run | Yrd Mat Sub Hostile Shots Fired 139 | . 49 90 Missed 45 | . 12 33 Damage Taken 1338 | . 379 959 Core 256 | . 100 156 Absorbed by Shields . | . . . Core Remaining (%) 100 | 100 . . Volleys Fired 84 | . 51 33 Largest 2 | . 2 2 Hottest 95 | . 46 95 Shots Fired 167 | . 102 65 Gun 163 | . 102 61 Cannon . | . . . Launcher 4 | . . 4 Special . | . . . Kinetic 136 | . 102 34 Thermal 27 | . . 27 Explosive 4 | . . 4 Electromagnetic . | . . . Robot Hit Streak 20 | . 10 20 Robot Miss Streak 4 | . 4 2 Penetration Max . | . . . Secondary Targets 2 | . 1 1 Max Gunslinging Chain 1 | . 1 1 Shots Hit Robots 116 | . 64 52 Core Hits 51 | . 33 18 Critical Kills . | . . . Critical Parts Destroyed . | . . . Critical Strikes 1 | . . 1 Burn 1 | . . 1 Melee Attacks 7 | . . 7 Impact 7 | . . 7 Slashing . | . . . Piercing . | . . . Sneak Attacks . | . . . Combat Hostiles . | . . . Follow-up Attacks . | . . . Damage Inflicted 1836 | . 785 1051 Guns 1628 | . 763 865 Cannons . | . . . Explosions 186 | . . 186 Melee . | . . . Ramming 22 | . 22 . Kinetic 1220 | . 763 457 Thermal 408 | . . 408 Explosive 186 | . . 186 Electromagnetic . | . . . Impact . | . . . Slashing . | . . . Piercing . | . . . Highest Corruption . | . . . Average Corruption . | . . . Corruption Purged . | . . . Corruption Blocked . | . . . Overload Shots . | . . . Overflow Damage . | . . . Projectiles . | . . . Explosions . | . . . Melee . | . . . Knockbacks . | . . . Impact . | . . . Kinetic . | . . . Secondary . | . . . Self-Inflicted Damage 32 | . . 32 Shots 1 | . . 1 Rammed . | . . . Targets Rammed 7 | . 7 . Kicked 7 | . 7 . Crushed . | . . . Highest Temperature 18 | . 18 18 Average Temperature 5 | . 7 4 Received Heat Transfer 297 | . 141 156 Siege Activations . | . . . Robots Corrupted . | . . . Combat Hostiles . | . . . Parts Fried . | . . . Impact Corruptions . | . . . Robots Melted . | . . . Combat Hostiles . | . . . Parts Melted . | . . . Heat Transferred 1036 | . . 1036 Parts Sabotaged . | . . . Parts Stolen . | . . . Parts Stripped . | . . . Power Chain Reactions . | . . . Alert | -11 -10 -10 ------- Run | Yrd Mat Sub Peak Influence 245 | . 245 . Initial . | . . . Average 83 | . 87 . Maximum Alert Level 1 | . 1 . Low Security (%) 91 | 100 90 . Level 1 8 | . 9 . Level 2 . | . . . Level 3 . | . . . Level 4 . | . . . Level 5 . | . . . High Security . | . . . Max Security . | . . . Squads Dispatched 3 | . 3 . Investigation 1 | . 1 . Extermination . | . . . Reinforcement 2 | . 2 . Assault . | . . . Garrison . | . . . Intercept . | . . . Searches Triggered . | . . . Construction Impeded . | . . . Haulers Reinforced . | . . . Active Scanning Responses . | . . . Cargo Convoy Interrupts . | . . . Stealth | -11 -10 -10 --------- Run | Yrd Mat Sub Distress Signals 3 | . 3 . Communications Jammed . | . . . Distress Signals . | . . . Times Spotted 48 | . 20 28 Peak Tracking Total 5 | . 4 5 Tactical Retreats 2 | . . 2 Traps | -11 -10 -10 ------- Run | Yrd Mat Sub Traps Triggered . | . . . Indirectly . | . . . Trap Hack Attempts . | . . . Triggered . | . . . Disarmed . | . . . Reprogrammed . | . . . Reused . | . . . Traps Extracted . | . . . Installed . | . . . Triggered . | . . . Machines | -11 -10 -10 ---------- Run | Yrd Mat Sub Machines Disabled . | . . . Max in Single Turn . | . . . Machines Repaired . | . . . Machines Dismantled . | . . . Machines Sabotaged . | . . . Overloaded Fab Kills . | . . . Hacking | -11 -10 -10 --------- Run | Yrd Mat Sub Machines Accessed 7 | . 6 1 Terminals 6 | . 6 . Fabricators . | . . . Repair Stations . | . . . Recycling Units . | . . . Scanalyzers . | . . . Garrison Access . | . . . Total Hacks 19 | . 16 3 Successful 11 | . 8 3 Failed 8 | . 8 . Catastrophic . | . . . Database Lockouts . | . . . Manual 10 | . 10 . Terminals 16 | . 16 . Fabricators . | . . . Repair Stations . | . . . Recycling Units . | . . . Scanalyzers . | . . . Garrison Access . | . . . Terminal Hacks 9 | . 6 3 Record 3 | . . 3 Part Schematic 1 | . 1 . Robot Analysis 1 | . 1 . Prototype ID Bank 1 | . 1 . Locate Traps 2 | . 2 . Hauler Manifests 1 | . 1 . Fabricator Hacks . | . . . Repair Station Hacks . | . . . Recycling Unit Hacks . | . . . Scanalyzer . | . . . Garrison Access Hacks . | . . . Unauthorized Hacks 2 | . 2 . Terminals 2 | . 2 . Botnet 2 | . 2 . Fabricators . | . . . Repair Stations . | . . . Recycling Units . | . . . Scanalyzers . | . . . Garrison Access . | . . . Data Cores Recovered . | . . . Used . | . . . Hacking Detections 6 | . 6 . Full Trace Events 1 | . 1 . Feedback Events . | . . . Feedback Blocked . | . . . Robot Schematics Acquired . | . . . Robots Built . | . . . Authchips . | . . . Time . | . . . Total Robot Build Rating . | . . . Part Schematics Acquired 1 | . 1 . Parts Built . | . . . Authchips . | . . . Time . | . . . Total Part Build Rating . | . . . Parts Repaired . | . . . Time . | . . . Parts Recycled . | . . . Recycled Matter . | . . . Retrieved Matter . | . . . Retrieved Components . | . . . Parts Scanalyzed . | . . . Part Schematics Acquired . | . . . Parts Damaged . | . . . Bothacking | -11 -10 -10 ------------ Run | Yrd Mat Sub Used RIF Installer . | . . . Robots Hacked . | . . . Non-combat . | . . . Combat . | . . . Robot Hacks Applied . | . . . Relay Couplers Released . | . . . Fabnet Peak Effective % . | . . . Robots Rewired . | . . . Allies Hacked . | . . . Hacks Repelled . | . . . Allies | -11 -10 -10 -------- Run | Yrd Mat Sub Total Allies . | . . . Largest Group . | . . . Highest-Rated Group . | . . . Highest-Rated Ally . | . . . Total Orders . | . . . Ally Attacks . | . . . Total Damage . | . . . Kills . | . . . Allies Corrupted . | . . . Allies Melted . | . . . Intel | -11 -10 -10 ------- Run | Yrd Mat Sub Robot Analysis Total 1 | . 1 . Derelict Logs Recovered 3 | . . 3 Drone Launches . | . . . Drone Recoveries . | . . . Exploration | -11 -10 -10 ------------- Run | Yrd Mat Sub Turns Passed 2662 | 78 1493 1091 Spaces Moved 1378 | 45 745 588 Core 15 | 15 . . Treads 594 | 3 3 588 Legs 769 | 27 742 . Wheels . | . . . Hover . | . . . Flight . | . . . Fastest Speed 50 | 50 120 160 Average Speed 166 | 138 172 160 Slowest Speed 240 | 200 190 240 Overloaded Moves . | . . . Propulsion Burnouts . | . . . Robots Hopped . | . . . Cave-ins Triggered . | . . . Exploration Rate (%) 42 | 5 88 33 Regions Visited 2 Branch Regions 1 Pre-discovered Areas 2 | . . 2 Known Exits Taken . | . . . Unknown Exits Taken 2 | 1 1 . Scrap Searched 3 | . . 3 Spaces Dug . | . . . Terrain Destroyed 18 | . . 18 Melee . | . . . Projectile . | . . . AOE 18 | . . 18 Terrain Rammed . | . . . Walls Destroyed . | . . . Machines Disabled . | . . . Actions | -11 -10 -10 --------- Run | Yrd Mat Sub Total 1583 | 59 865 659 Wait 19 | . 19 . Move 1376 | 44 744 588 Hop . | . . . Pick Up 35 | 5 20 10 Fast Attach 8 | 6 1 1 Attach 9 | 2 4 3 Detach 2 | 2 . . Swap 13 | . 4 9 Drop 23 | . 15 8 Fire 84 | . 51 33 Melee 7 | . . 7 Ram . | . . . Kick 7 | . 7 . Crush . | . . . Escape Stasis . | . . . Rewire . | . . . Trap . | . . . Miscellaneous . | . . . Route ------- -11/Scrapyard -10/Materials (discovered 5 exits: [*Mat x2] / [*Min x2] / *Sub) -10/Subcaves (discovered 1 exit: *Mat) History --------- Turn | Location | Event 24 | -11/Scrapyard | Discovered new exit (range 15) 79 | -11/Scrapyard | Entered Materials 323 | -10/Materials | Build established: Mutant 680 | -10/Materials | Discovered new exit (range 5) 786 | -10/Materials | Discovered new exit (range 14) 905 | -10/Materials | Discovered new exit (range 12) 1235 | -10/Materials | Discovered new exit (range 7) 1554 | -10/Materials | Discovered new exit (range 10) 1572 | -10/Materials | Entered Subcaves 1572 | -10/Subcaves | Learned location of Zion (-6) 1588 | -10/Subcaves | Identified exit to Materials 1956 | -10/Subcaves | Learned location of 1 exit from Materials 2411 | -10/Subcaves | Core integrity fell below 50% 2529 | -10/Subcaves | Shifting Twisted Machinery released Flamer 2532 | -10/Subcaves | Shifting Twisted Machinery released Battle Cannon 2638 | -10/Subcaves | Visited Clippyterm 2643 | -10/Subcaves | Learned location of Extension (-5) 2643 | -10/Subcaves | Learned 40 Factory zone layouts 2655 | -10/Subcaves | Core integrity fell below 20% 2663 | -10/Subcaves | Destroyed by 4N-T2V(R) with Subdweller Shrapnel Launcher Last Messages --------------- >>Record "Clippyterm" Welcome to Clippyterm v0.53, my misguided attempt to resurrect an ancient AI. I give up. There must be something fundamentally wrong with the algorithm, because no matter how much data I collect to feed it, half the time it still manages to suggest unhelpful sample queries and responses. --DD-NU8 >>Intel! "Prison Break" It looks like you're planning to spring a Derelict or three, would you like help? World map updated: -5/Extension. >>Intel! "Cartography" It looks like you want to prove yourself as a member of the Cartography Club, why not cheat using advanced predictive AI techniques? Data stored: Factory zone layouts (x40). 02654_ Particle Gun destroyed. 02656_ Barrage Gun destroyed. 02656_ Spk. Treads destroyed. Map ----- +----------------------------------------------------+ | | | ?????????????????????????????????????????????????? | | ?????????????????????????????????????????????????? | | ?????????????????????????????????????????????????? | | ?????????????????????????????????????????????????? | | ?????????????????????????????????????????????????? | | ?????????????????????????????????????????????????? | | ?????????????????????????????????????????????????? | | ?????????????????????????????????????????????????? | | ?????????????????????????????????????????????????? | | ????????????#######??????????????????????????????? | | ????????????#"""""#??????????????????????????????? | | ????????????#""X""###????????????????????????????? | | ????????????#" "# ###??????????????????????????? | | ????????????#"; ; ##?????????????????????????? | | ?????????##?#" ##????????????????????????? | | ???## ### #; ##???????????????????????? | | ???# ##??????????????????????? | | ????# R #??????????????????????? | | ??"" R #????####??????????????? | | ??" " ; #??## ##????##???????? | | ??? ## #;; #### #???# #???????? | | ?????## ### ;# #?## #???????? | | ??????## ??## ; ### #????????? | | ???????## ????## ## #????????? | | ????????# #?????# ; @ ### #????????? | | ????????# ??????###; #### #????????? | | ????????# ?????????#### ## # < #????????? | | ????????# ????????????# ## #????????? | | ???????? ?????????????# # # #????????? | | ??????????????????????# ## # #### #????????? | | ?????????????????????# ### ## # #?# #????????? | | ???????????????????? #?# ### #????????? | | ?????????????????? ?# ### ##???????? | | ????????????????# # ##?## ## #???????? | | ????????????????# # ????## """|""#???????? | | ????????????????# ?# ?????## " ##???????? | | ????????????????##??# ??????## ##" "#????????? | | ???????????????????? ???????####""" ##????????? | | ??????????????????? ?????????#""" ##????????? | | ?????????????????????? ??????????#### ##???????? | | ????????????????????????????????????# #???????? | | ??????????????????????????????????### #???????? | | ??????????????????????????????##### #???????? | | ?????????????????????????###### #???????? | | ????????????????????????## #???????? | | ????????????????????????# ## ##???????? | | ????????????????????????# ## #????????? | | ??????????????????????### % ## ##????????? | | ?????????????????????## % % ## #?????????? | +----------------------------------------------------+ Best States ------------- Heat Dissipation 25 Energy Generation 15 Energy Capacity 250 Matter Stores 300 Matter Capacity 300 Sight Range 16 Terrain Scan Density 10 Armor Coverage 150 Evasion (%) 55 Targeting Accuracy 6 Recoil Reduction 2 Item Schematics ----------------- Huge Storage Unit | -10/Materials | Hacked Robot Schematics ------------------ None Fabricated ------------ Nothing Alien Tech Used ----------------- None Achievements -------------- None Challenges ------------ None Game ------ Seed SuspensionChipRifle Manual? 0 Play Time 00:18:41 Cumulative 26.6 hours Start 2024.04.12 @ 17:06:40 End 2024.04.12 @ 17:23:35 Sessions 1 Manual Loads 0 Difficulty Rogue Special Mode None Game No. 32 Rogue 32 Adventurer 0 Explorer 0 Win Type - Total 1 Types 1/0/0/0/0/0/0/0/0 Lore% 16 Gallery% 32 Achievement% 25 Wizard Run 0 Options --------- Layout 1 ASCII 0 Keyboard 0 Movement Mouse Keybinds 0 Fullscreen 1 Font 24/Smallcaps Map View 50x35 Zoom Use 0% Tactical HUD 1 Map Filters NONE Filters NONE Steam 1 RUN: fabbabc1-0d07-440d-a0cd-bcef30bc0bf9